[Event "Božićni turnir u VaraždinskimToplicama 26.12.2025."]
[Site "Varazdinske Toplice, Croatia"]
[Date "2025.12.26"]
[Round "6.5"]
[White "Kovacek, Pavlo"]
[Black "Mravunac, Damir"]
[Result "0-1"]
[TimeControl "10"]
[WhiteFideId "14559200"]
[BlackFideId "14502810"]
[WhiteElo "1704"]
[BlackElo "2044"]

1. e4 {[%clk 00:09:58]} {[%emt 00:00:01]} c5 {[%clk 00:09:59]} 2. Nf3 {[%clk
00:09:56]} {[%emt 00:00:02]} e6 {[%clk 00:09:58]} {[%emt 00:00:01]} 3. d4
{[%clk 00:09:54]} {[%emt 00:00:02]} cxd4 {[%clk 00:09:56]} {[%emt 00:00:02]} 4.
Nxd4 {[%clk 00:09:54]} {[%emt 00:00:01]} a6 {[%clk 00:09:55]} {[%emt 00:00:01]}
5. c4 {[%clk 00:09:50]} {[%emt 00:00:03]} Nf6 {[%clk 00:09:52]} {[%emt
00:00:03]} 6. Nc3 {[%clk 00:09:49]} {[%emt 00:00:01]} Bc5 {[%clk 00:09:47]}
{[%emt 00:00:05]} 7. Be3 {[%clk 00:09:47]} {[%emt 00:00:02]} h5 {[%clk
00:09:45]} {[%emt 00:00:02]} 8. f3 {[%clk 00:09:45]} {[%emt 00:00:02]} Qc7
{[%clk 00:09:02]} {[%emt 00:00:42]} 9. Be2 {[%clk 00:09:30]} {[%emt 00:00:16]}
h4 {[%clk 00:08:11]} {[%emt 00:00:51]} 10. Rc1 {[%clk 00:09:15]} {[%emt
00:00:16]} d6 {[%clk 00:06:54]} {[%emt 00:01:16]} 11. Qd2 {[%clk 00:08:51]}
{[%emt 00:00:24]} Bd7 {[%clk 00:06:47]} {[%emt 00:00:07]} 12. a3 {[%clk
00:08:38]} {[%emt 00:00:14]} Nc6 {[%clk 00:06:37]} {[%emt 00:00:10]} 13. b4
{[%clk 00:08:28]} {[%emt 00:00:09]} Ba7 {[%clk 00:05:57]} {[%emt 00:00:40]} 14.
Rd1 {[%clk 00:07:41]} {[%emt 00:00:47]} Ne5 {[%clk 00:05:46]} {[%emt 00:00:12]}
15. Nb3 {[%clk 00:06:38]} {[%emt 00:01:02]} Bxe3 {[%clk 00:05:30]} {[%emt
00:00:16]} 16. Qxe3 {[%clk 00:06:36]} {[%emt 00:00:01]} Nxc4 {[%clk 00:05:24]}
{[%emt 00:00:07]} 17. Bxc4 {[%clk 00:06:31]} {[%emt 00:00:06]} Qxc4 {[%clk
00:05:23]} {[%emt 00:00:01]} 18. Na5 {[%clk 00:06:26]} {[%emt 00:00:04]} Qc7
{[%clk 00:05:12]} {[%emt 00:00:10]} 19. Qd4 {[%clk 00:05:40]} {[%emt 00:00:46]}
h3 {[%clk 00:05:00]} {[%emt 00:00:13]} 20. g3 {[%clk 00:05:36]} {[%emt
00:00:04]} Rc8 {[%clk 00:04:57]} {[%emt 00:00:03]} 21. Ne2 {[%clk 00:04:31]}
{[%emt 00:01:05]} b6 {[%clk 00:04:52]} {[%emt 00:00:05]} 22. Nb3 {[%clk
00:04:21]} {[%emt 00:00:10]} Ba4 {[%clk 00:04:46]} {[%emt 00:00:06]} 23. Nec1
{[%clk 00:04:01]} {[%emt 00:00:20]} Qc3+ {[%clk 00:04:29]} {[%emt 00:00:17]} 24.
Kf2 {[%clk 00:03:28]} {[%emt 00:00:32]} Bxb3 {[%clk 00:04:05]} {[%emt
00:00:25]} 25. Nxb3 {[%clk 00:03:27]} {[%emt 00:00:02]} Qxb3 {[%clk 00:03:56]}
{[%emt 00:00:08]} 26. Qxd6 {[%clk 00:03:16]} {[%emt 00:00:12]} Rc2+ {[%clk
00:03:48]} {[%emt 00:00:08]} 27. Rd2 {[%clk 00:03:12]} {[%emt 00:00:03]} Rxd2+
{[%clk 00:03:40]} {[%emt 00:00:08]} 28. Qxd2 {[%clk 00:03:10]} {[%emt
00:00:02]} O-O {[%clk 00:03:34]} {[%emt 00:00:06]} 29. Rc1 {[%clk 00:03:04]}
{[%emt 00:00:05]} Qxa3 {[%clk 00:03:26]} {[%emt 00:00:09]} 30. g4 {[%clk
00:02:46]} {[%emt 00:00:19]} a5 {[%clk 00:03:22]} {[%emt 00:00:05]} 31. Rb1
{[%clk 00:02:28]} {[%emt 00:00:18]} Rc8 {[%clk 00:03:09]} {[%emt 00:00:13]} 32.
Kg3 {[%clk 00:02:16]} {[%emt 00:00:11]} Nxe4+ {[%clk 00:03:05]} {[%emt
00:00:04]} 0-1

[Event "Božićni turnir u VaraždinskimToplicama 26.12.2025."]
[Site "Varazdinske Toplice, Croatia"]
[Date "2025.12.26"]
[Round "6.6"]
[White "Forstnaric, Zdravko"]
[Black "Sostaric, Denis"]
[Result "0-1"]
[TimeControl "10"]
[WhiteFideId "14523841"]
[BlackFideId "14615851"]
[WhiteElo "1836"]
[BlackElo "1868"]

1. d4 {[%clk 00:09:57]} {[%emt 00:00:03]} d5 {[%clk 00:09:59]} {[%emt
00:00:02]} 2. c4 {[%clk 00:09:56]} {[%emt 00:00:01]} e6 {[%clk 00:09:57]} 3.
Nc3 {[%clk 00:09:55]} {[%emt 00:00:01]} Be7 {[%clk 00:09:56]} {[%emt 00:00:01]}
4. Nf3 {[%clk 00:09:53]} {[%emt 00:00:02]} Nf6 {[%clk 00:09:55]} {[%emt
00:00:02]} 5. h3 {[%clk 00:09:51]} {[%emt 00:00:01]} O-O {[%clk 00:09:53]}
{[%emt 00:00:03]} 6. Bf4 {[%clk 00:09:50]} c6 {[%clk 00:09:49]} {[%emt
00:00:04]} 7. e3 {[%clk 00:09:48]} {[%emt 00:00:01]} Nbd7 {[%clk 00:09:48]}
{[%emt 00:00:01]} 8. Bd3 {[%clk 00:09:46]} {[%emt 00:00:01]} dxc4 {[%clk
00:09:44]} {[%emt 00:00:06]} 9. Bxc4 {[%clk 00:09:45]} b5 {[%clk 00:09:42]}
{[%emt 00:00:02]} 10. Bd3 {[%clk 00:09:43]} {[%emt 00:00:02]} Bb7 {[%clk
00:09:41]} 11. O-O {[%emt 00:00:19]} a6 {[%emt 00:00:02]} 12. Qc2 {[%clk
00:09:18]} {[%emt 00:00:04]} c5 {[%clk 00:09:36]} {[%emt 00:00:05]} 13. dxc5
{[%clk 00:09:12]} {[%emt 00:00:06]} Nxc5 {[%clk 00:09:34]} {[%emt 00:00:01]} 14.
Rad1 {[%clk 00:09:00]} {[%emt 00:00:12]} Nxd3 {[%clk 00:09:32]} {[%emt
00:00:02]} 15. Rxd3 {[%clk 00:08:49]} {[%emt 00:00:11]} Qb6 {[%clk 00:09:30]}
{[%emt 00:00:02]} 16. a3 {[%clk 00:08:34]} {[%emt 00:00:16]} Bxf3 {[%clk
00:09:13]} {[%emt 00:00:16]} 17. gxf3 {[%clk 00:08:33]} Rac8 {[%clk 00:09:05]}
{[%emt 00:00:10]} 18. Qe2 {[%clk 00:08:26]} {[%emt 00:00:06]} a5 {[%clk
00:08:54]} {[%emt 00:00:11]} 19. Rfd1 {[%clk 00:08:25]} {[%emt 00:00:01]} b4
{[%clk 00:08:51]} {[%emt 00:00:03]} 20. axb4 {[%clk 00:08:14]} {[%emt
00:00:11]} axb4 {[%clk 00:08:50]} {[%emt 00:00:01]} 21. Ne4 {[%clk 00:08:05]}
{[%emt 00:00:10]} Nd5 {[%clk 00:08:44]} {[%emt 00:00:05]} 22. Be5 {[%clk
00:07:44]} {[%emt 00:00:21]} f5 {[%clk 00:07:50]} {[%emt 00:00:54]} 23. Ng3
{[%clk 00:07:24]} {[%emt 00:00:20]} Bf6 {[%clk 00:07:42]} {[%emt 00:00:09]} 24.
e4 {[%clk 00:07:09]} {[%emt 00:00:15]} Bxe5 {[%clk 00:07:35]} {[%emt 00:00:06]}
25. exd5 {[%clk 00:07:08]} {[%emt 00:00:01]} Bxg3 {[%clk 00:07:34]} {[%emt
00:00:02]} 26. dxe6 {[%clk 00:06:45]} {[%emt 00:00:22]} Bh4 {[%clk 00:07:20]}
{[%emt 00:00:14]} 27. Rd6 {[%clk 00:06:26]} {[%emt 00:00:20]} Qc5 {[%clk
00:07:09]} {[%emt 00:00:11]} 28. Kg2 {[%clk 00:06:20]} {[%emt 00:00:06]} Rce8
{[%clk 00:06:56]} {[%emt 00:00:12]} 29. R1d5 {[%clk 00:06:12]} {[%emt
00:00:08]} Qc1 {[%clk 00:06:42]} {[%emt 00:00:14]} 30. Rd7 {[%clk 00:05:57]}
{[%emt 00:00:15]} Rf6 {[%clk 00:06:15]} {[%emt 00:00:27]} 31. e7 {[%clk
00:05:42]} {[%emt 00:00:15]} Rg6+ {[%clk 00:06:11]} {[%emt 00:00:04]} 0-1

[Event "Božićni turnir u VaraždinskimToplicama 26.12.2025."]
[Site "Varazdinske Toplice, Croatia"]
[Date "2025.12.26"]
[Round "6.7"]
[White "Bozinovic, Bogdan"]
[Black "Bicanic, Mile"]
[Result "1-0"]
[TimeControl "10"]
[WhiteFideId "14502593"]
[BlackFideId "14579995"]
[WhiteElo "2129"]
[BlackElo "1761"]

1. d4 {[%clk 00:09:56]} {[%emt 00:00:03]} d5 {[%clk 00:09:59]} {[%emt
00:00:02]} 2. c4 {[%clk 00:09:55]} {[%emt 00:00:01]} c6 {[%clk 00:09:58]}
{[%emt 00:00:01]} 3. Nc3 {[%clk 00:09:53]} {[%emt 00:00:01]} Nf6 {[%clk
00:09:57]} {[%emt 00:00:03]} 4. Nf3 {[%clk 00:09:51]} {[%emt 00:00:01]} g6
{[%clk 00:09:54]} {[%emt 00:00:03]} 5. Bf4 {[%clk 00:09:46]} {[%emt 00:00:05]}
Bg7 {[%clk 00:09:50]} {[%emt 00:00:04]} 6. e3 {[%clk 00:09:44]} {[%emt
00:00:02]} Bg4 {[%clk 00:09:49]} {[%emt 00:00:01]} 7. h3 {[%clk 00:09:40]}
{[%emt 00:00:04]} Bxf3 {[%clk 00:09:47]} {[%emt 00:00:02]} 8. Qxf3 {[%clk
00:09:38]} {[%emt 00:00:02]} e6 {[%clk 00:09:46]} {[%emt 00:00:01]} 9. Bd3
{[%clk 00:09:30]} {[%emt 00:00:08]} O-O {[%clk 00:09:43]} {[%emt 00:00:03]} 10.
O-O {[%clk 00:09:28]} {[%emt 00:00:02]} Nbd7 {[%clk 00:09:38]} {[%emt
00:00:05]} 11. Bd6 {[%clk 00:09:19]} {[%emt 00:00:09]} Re8 {[%clk 00:09:34]}
{[%emt 00:00:04]} 12. c5 {[%clk 00:09:09]} {[%emt 00:00:10]} e5 {[%clk
00:09:17]} {[%emt 00:00:17]} 13. Qd1 {[%clk 00:09:00]} {[%emt 00:00:09]} e4
{[%clk 00:09:13]} {[%emt 00:00:04]} 14. Be2 {[%clk 00:08:58]} Bf8 {[%clk
00:09:12]} {[%emt 00:00:01]} 15. Bh2 {[%clk 00:08:52]} {[%emt 00:00:06]} Rc8
{[%clk 00:08:52]} {[%emt 00:00:21]} 16. b4 {[%clk 00:08:50]} {[%emt 00:00:02]}
b6 {[%clk 00:08:46]} {[%emt 00:00:06]} 17. Qa4 {[%clk 00:08:35]} {[%emt
00:00:15]} bxc5 {[%clk 00:08:32]} {[%emt 00:00:14]} 18. bxc5 {[%clk 00:08:33]}
{[%emt 00:00:02]} Bg7 {[%clk 00:08:23]} {[%emt 00:00:09]} 19. Ba6 {[%clk
00:08:23]} {[%emt 00:00:10]} Nh5 {[%clk 00:07:43]} {[%emt 00:00:40]} 20. Bxc8
{[%clk 00:07:57]} {[%emt 00:00:25]} Qxc8 {[%clk 00:07:42]} {[%emt 00:00:02]} 21.
Qxa7 {[%clk 00:07:46]} {[%emt 00:00:11]} Bf6 {[%clk 00:07:25]} {[%emt
00:00:18]} 22. Na4 {[%clk 00:07:38]} {[%emt 00:00:07]} Ng7 {[%clk 00:07:13]}
{[%emt 00:00:12]} 23. Rab1 {[%clk 00:07:37]} {[%emt 00:00:01]} Nf8 {[%clk
00:07:01]} {[%emt 00:00:12]} 24. Rb7 {[%clk 00:07:26]} {[%emt 00:00:11]} Qa8
{[%clk 00:06:28]} {[%emt 00:00:33]} 25. Rxf7 {[%clk 00:07:12]} {[%emt
00:00:14]} Qxa7 {[%clk 00:06:08]} {[%emt 00:00:20]} 26. Rxa7 {[%clk 00:07:10]}
{[%emt 00:00:02]} Nfe6 {[%clk 00:06:00]} {[%emt 00:00:08]} 27. Rd1 {[%clk
00:06:54]} {[%emt 00:00:16]} g5 {[%clk 00:05:53]} {[%emt 00:00:07]} 28. Bd6
{[%clk 00:06:49]} {[%emt 00:00:05]} h5 {[%clk 00:05:36]} {[%emt 00:00:17]} 29.
Nb6 {[%clk 00:06:46]} {[%emt 00:00:03]} Nf5 {[%clk 00:05:13]} {[%emt 00:00:23]}
30. Nd7 {[%clk 00:06:32]} {[%emt 00:00:14]} Bg7 {[%clk 00:05:05]} {[%emt
00:00:08]} 31. Ne5 {[%clk 00:06:24]} {[%emt 00:00:07]} Nxd6 {[%clk 00:04:55]}
{[%emt 00:00:11]} 32. cxd6 {[%clk 00:06:22]} {[%emt 00:00:01]} c5 {[%clk
00:04:43]} {[%emt 00:00:13]} 33. d7 {[%clk 00:06:03]} {[%emt 00:00:20]} Rf8
{[%clk 00:04:20]} {[%emt 00:00:22]} 34. Nc6 {[%clk 00:05:57]} {[%emt 00:00:06]}
cxd4 {[%clk 00:04:12]} {[%emt 00:00:08]} 35. Nxd4 {[%clk 00:05:52]} {[%emt
00:00:04]} Bxd4 {[%clk 00:03:59]} {[%emt 00:00:14]} 36. exd4 {[%clk 00:05:43]}
{[%emt 00:00:09]} Rd8 {[%clk 00:03:58]} {[%emt 00:00:02]} 37. a4 {[%clk
00:05:27]} {[%emt 00:00:16]} g4 {[%clk 00:03:51]} {[%emt 00:00:07]} 38. hxg4
hxg4 {[%clk 00:03:50]} 39. a5 {[%clk 00:05:23]} Kf8 {[%clk 00:03:42]} {[%emt
00:00:09]} 40. a6 {[%clk 00:05:21]} {[%emt 00:00:02]} Rb8 {[%clk 00:03:32]}
{[%emt 00:00:11]} 41. Rb7 {[%clk 00:05:19]} {[%emt 00:00:01]} Ra8 {[%clk
00:03:21]} {[%emt 00:00:11]} 42. a7 {[%clk 00:05:17]} {[%emt 00:00:02]} Nd8
{[%clk 00:03:20]} 43. Rb8 {[%clk 00:05:15]} {[%emt 00:00:02]} Rxa7 {[%clk
00:03:10]} {[%emt 00:00:10]} 44. Rxd8+ {[%clk 00:05:13]} {[%emt 00:00:02]} Ke7
{[%clk 00:03:10]} 45. Rg8 {[%clk 00:05:09]} {[%emt 00:00:03]} 1-0

[Event "Božićni turnir u VaraždinskimToplicama 26.12.2025."]
[Site "Varazdinske Toplice, Croatia"]
[Date "2025.12.26"]
[Round "6.8"]
[White "Jarnjak, Zlatko"]
[Black "Hergotic, Ivica"]
[Result "0-1"]
[TimeControl "10"]
[WhiteFideId "79305938"]
[BlackFideId "14523884"]
[WhiteElo "1644"]
[BlackElo "2054"]

1. d4 {[%clk 00:09:57]} {[%emt 00:00:02]} Nf6 {[%clk 00:09:58]} {[%emt
00:00:03]} 2. Nf3 {[%clk 00:09:56]} {[%emt 00:00:01]} e6 {[%clk 00:09:57]} 3.
e3 {[%clk 00:09:51]} {[%emt 00:00:05]} d5 {[%clk 00:09:56]} 4. Bd3 {[%clk
00:09:49]} {[%emt 00:00:01]} c5 {[%clk 00:09:47]} {[%emt 00:00:11]} 5. b3
{[%clk 00:09:47]} {[%emt 00:00:01]} Nc6 {[%clk 00:09:35]} {[%emt 00:00:12]} 6.
Bb2 {[%clk 00:09:44]} {[%emt 00:00:03]} cxd4 {[%clk 00:09:34]} {[%emt
00:00:01]} 7. exd4 {[%clk 00:09:41]} {[%emt 00:00:03]} Bd6 {[%clk 00:09:23]}
{[%emt 00:00:11]} 8. O-O {[%clk 00:09:28]} {[%emt 00:00:12]} O-O {[%clk
00:09:15]} {[%emt 00:00:09]} 9. Ne5 {[%clk 00:09:11]} {[%emt 00:00:16]} Nd7
{[%clk 00:08:08]} {[%emt 00:01:09]} 10. f4 {[%clk 00:08:54]} {[%emt 00:00:15]}
Ndxe5 {[%clk 00:07:47]} {[%emt 00:00:21]} 11. fxe5 {[%emt 00:00:32]} Be7 12.
Qh5 {[%clk 00:08:08]} {[%emt 00:00:14]} g6 {[%clk 00:07:44]} {[%emt 00:00:04]}
13. Qg4 {[%clk 00:07:29]} {[%emt 00:00:39]} Nb4 {[%clk 00:06:59]} {[%emt
00:00:45]} 14. Nc3 {[%clk 00:06:12]} {[%emt 00:01:17]} Nxd3 {[%clk 00:06:33]}
{[%emt 00:00:26]} 15. cxd3 {[%clk 00:06:09]} {[%emt 00:00:02]} b6 {[%clk
00:06:22]} {[%emt 00:00:13]} 16. Bc1 {[%clk 00:05:56]} {[%emt 00:00:12]} Ba6
{[%clk 00:05:49]} {[%emt 00:00:33]} 17. Rf3 {[%clk 00:05:48]} {[%emt 00:00:07]}
Rc8 {[%clk 00:05:37]} {[%emt 00:00:13]} 18. Ne2 {[%clk 00:05:39]} {[%emt
00:00:08]} h5 {[%clk 00:04:51]} {[%emt 00:00:47]} 19. Qf4 {[%clk 00:05:07]}
{[%emt 00:00:32]} Rc2 {[%clk 00:04:34]} {[%emt 00:00:18]} 20. Ng3 {[%clk
00:04:32]} {[%emt 00:00:33]} h4 {[%clk 00:03:33]} {[%emt 00:01:02]} 21. Qh6
{[%clk 00:03:58]} {[%emt 00:00:33]} Rxc1+ {[%clk 00:03:25]} {[%emt 00:00:09]}
22. Qxc1 {[%clk 00:03:42]} {[%emt 00:00:16]} Bg5 {[%clk 00:03:09]} {[%emt
00:00:16]} 23. Qa3 {[%clk 00:03:32]} {[%emt 00:00:09]} hxg3 {[%clk 00:02:35]}
{[%emt 00:00:34]} 24. Qxa6 {[%clk 00:03:23]} {[%emt 00:00:09]} gxh2+ {[%clk
00:02:29]} {[%emt 00:00:06]} 25. Kxh2 {[%clk 00:03:13]} {[%emt 00:00:10]} Qc7
{[%clk 00:02:28]} {[%emt 00:00:02]} 26. Raf1 {[%clk 00:03:07]} {[%emt
00:00:05]} Kg7 {[%clk 00:02:24]} {[%emt 00:00:04]} 27. Qa3 {[%clk 00:02:42]}
{[%emt 00:00:25]} f6 {[%clk 00:02:03]} {[%emt 00:00:22]} 28. Qd6 {[%clk
00:02:29]} {[%emt 00:00:12]} Qxd6 29. exd6 {[%clk 00:02:28]} Rd8 {[%clk
00:02:02]} {[%emt 00:00:01]} 30. b4 {[%clk 00:02:11]} {[%emt 00:00:17]} Rxd6
{[%clk 00:01:56]} {[%emt 00:00:06]} 31. a4 {[%clk 00:02:10]} Rc6 {[%clk
00:01:53]} {[%emt 00:00:04]} 32. Rb1 {[%clk 00:02:08]} {[%emt 00:00:02]} Kf7
{[%clk 00:01:46]} {[%emt 00:00:07]} 33. b5 {[%clk 00:02:03]} {[%emt 00:00:05]}
Rc3 {[%clk 00:01:35]} {[%emt 00:00:11]} 34. Ra1 {[%clk 00:01:56]} {[%emt
00:00:07]} f5 {[%clk 00:01:14]} {[%emt 00:00:21]} 35. a5 {[%clk 00:01:52]}
{[%emt 00:00:04]} Bd8 {[%clk 00:01:12]} {[%emt 00:00:02]} 36. a6 {[%clk
00:01:42]} {[%emt 00:00:10]} g5 {[%clk 00:01:08]} {[%emt 00:00:03]} 37. Rff1
{[%clk 00:01:40]} {[%emt 00:00:02]} Bf6 {[%clk 00:00:58]} {[%emt 00:00:11]} 38.
Rfc1 {[%clk 00:01:38]} {[%emt 00:00:02]} Bxd4 {[%clk 00:00:57]} {[%emt
00:00:01]} 39. Rxc3 {[%clk 00:01:35]} {[%emt 00:00:03]} Bxc3 {[%clk 00:00:56]}
40. Kg3 {[%clk 00:01:33]} {[%emt 00:00:03]} Bxa1 {[%clk 00:00:55]} 0-1

[Event "Božićni turnir u VaraždinskimToplicama 26.12.2025."]
[Site "Varazdinske Toplice, Croatia"]
[Date "2025.12.26"]
[Round "6.10"]
[White "Mitrovic, Boris"]
[Black "Kunovac, Marin"]
[Result "1-0"]
[TimeControl "10"]
[WhiteFideId "14610655"]
[BlackFideId "79326005"]
[WhiteElo "1968"]
[BlackElo "1415"]

1. Nf3 {[%clk 00:09:59]} d5 {[%clk 00:09:57]} {[%emt 00:00:03]} 2. e3 {[%clk
00:09:58]} {[%emt 00:00:02]} Nf6 {[%clk 00:09:54]} {[%emt 00:00:03]} 3. c4
{[%clk 00:09:57]} g6 {[%clk 00:09:49]} {[%emt 00:00:05]} 4. Nc3 {[%clk
00:09:57]} Bg7 {[%clk 00:09:47]} {[%emt 00:00:01]} 5. Qb3 {[%clk 00:09:55]}
{[%emt 00:00:02]} c6 {[%clk 00:09:30]} {[%emt 00:00:18]} 6. Be2 {[%clk
00:09:45]} {[%emt 00:00:09]} Na6 {[%clk 00:09:27]} {[%emt 00:00:03]} 7. d4
{[%clk 00:09:43]} {[%emt 00:00:02]} O-O {[%clk 00:09:20]} {[%emt 00:00:07]} 8.
O-O {[%clk 00:09:42]} {[%emt 00:00:01]} Rb8 {[%clk 00:09:10]} {[%emt 00:00:10]}
9. cxd5 {[%clk 00:09:39]} {[%emt 00:00:03]} Nc7 {[%clk 00:08:38]} {[%emt
00:00:32]} 10. dxc6 {[%clk 00:09:38]} {[%emt 00:00:01]} b6 {[%clk 00:08:33]}
{[%emt 00:00:04]} 11. Rd1 {[%clk 00:09:18]} {[%emt 00:00:21]} Qd6 {[%clk
00:08:31]} {[%emt 00:00:02]} 12. d5 {[%clk 00:09:10]} {[%emt 00:00:08]} Bg4
{[%clk 00:08:12]} {[%emt 00:00:19]} 13. e4 {[%clk 00:09:09]} {[%emt 00:00:02]}
e5 {[%clk 00:07:51]} {[%emt 00:00:21]} 14. Bg5 {[%clk 00:08:44]} {[%emt
00:00:25]} Rfd8 {[%clk 00:07:30]} {[%emt 00:00:20]} 15. Bh4 {[%clk 00:08:41]}
{[%emt 00:00:03]} Re8 {[%clk 00:06:55]} {[%emt 00:00:36]} 16. Bg3 {[%clk
00:08:39]} {[%emt 00:00:02]} Nh5 {[%clk 00:06:43]} {[%emt 00:00:11]} 17. Nd2
{[%clk 00:08:35]} {[%emt 00:00:05]} Bxe2 {[%clk 00:06:33]} {[%emt 00:00:09]} 18.
Nxe2 {[%clk 00:08:34]} {[%emt 00:00:01]} Bh6 {[%clk 00:06:10]} {[%emt
00:00:22]} 19. Nc4 {[%clk 00:08:32]} {[%emt 00:00:04]} Qf6 {[%clk 00:05:49]}
{[%emt 00:00:18]} 20. d6 {[%clk 00:08:29]} {[%emt 00:00:05]} Nxg3 {[%clk
00:05:27]} {[%emt 00:00:22]} 21. Qxg3 {[%clk 00:08:07]} {[%emt 00:00:22]} Nb5
{[%clk 00:05:08]} {[%emt 00:00:19]} 22. a4 {[%clk 00:07:58]} {[%emt 00:00:10]}
Nd4 {[%clk 00:04:46]} {[%emt 00:00:21]} 23. Nxd4 {[%clk 00:07:55]} {[%emt
00:00:03]} exd4 {[%clk 00:04:43]} {[%emt 00:00:02]} 24. d7 {[%clk 00:07:52]}
{[%emt 00:00:04]} Rf8 {[%clk 00:04:08]} {[%emt 00:00:34]} 25. c7 {[%clk
00:07:36]} {[%emt 00:00:17]} Ra8 {[%clk 00:03:57]} {[%emt 00:00:11]} 26. Qd6
{[%clk 00:07:27]} {[%emt 00:00:09]} Qxd6 {[%clk 00:03:48]} {[%emt 00:00:09]} 27.
Nxd6 {[%clk 00:07:26]} {[%emt 00:00:02]} Bf4 {[%clk 00:03:46]} {[%emt
00:00:01]} 28. c8=Q {[%clk 00:07:17]} {[%emt 00:00:09]} Bxd6 {[%clk 00:03:35]}
{[%emt 00:00:11]} 29. Qc6 {[%clk 00:07:16]} {[%emt 00:00:02]} Bc5 {[%clk
00:03:28]} {[%emt 00:00:06]} 30. Rab1 {[%clk 00:07:13]} {[%emt 00:00:04]} Rad8
{[%clk 00:03:20]} {[%emt 00:00:07]} 31. b4 {[%clk 00:07:12]} {[%emt 00:00:01]}
Be7 {[%clk 00:03:14]} {[%emt 00:00:06]} 32. Rxd4 {[%clk 00:07:09]} {[%emt
00:00:04]} Bg5 {[%clk 00:03:02]} {[%emt 00:00:12]} 33. e5 {[%clk 00:07:02]}
{[%emt 00:00:07]} f6 {[%clk 00:02:55]} {[%emt 00:00:07]} 34. e6 {[%clk
00:06:59]} {[%emt 00:00:03]} f5 {[%clk 00:02:50]} {[%emt 00:00:04]} 35. Qd6
{[%clk 00:06:49]} {[%emt 00:00:10]} Bf6 {[%clk 00:02:35]} {[%emt 00:00:14]} 36.
Rc4 {[%clk 00:06:43]} {[%emt 00:00:07]} 1-0

[Event "Božićni turnir u VaraždinskimToplicama 26.12.2025."]
[Site "Varazdinske Toplice, Croatia"]
[Date "2025.12.26"]
[Round "6.12"]
[White "Vidovic, Fran"]
[Black "Marcec, Fran"]
[Result "0-1"]
[TimeControl "10"]
[WhiteFideId "14575523"]
[BlackFideId "79313183"]
[WhiteElo "1780"]
[BlackElo "1150"]

1. d4 {[%clk 00:09:58]} {[%emt 00:00:01]} d5 {[%clk 00:09:59]} {[%emt
00:00:01]} 2. Bf4 {[%clk 00:09:57]} {[%emt 00:00:02]} e6 {[%clk 00:09:58]}
{[%emt 00:00:01]} 3. e3 {[%clk 00:09:55]} {[%emt 00:00:02]} Bd6 {[%clk
00:09:57]} {[%emt 00:00:01]} 4. Bg3 {[%clk 00:09:54]} h5 {[%clk 00:09:52]}
{[%emt 00:00:05]} 5. Nf3 {[%clk 00:09:48]} {[%emt 00:00:05]} g5 {[%clk
00:09:31]} {[%emt 00:00:21]} 6. c3 {[%clk 00:09:26]} {[%emt 00:00:23]} h4
{[%clk 00:09:08]} {[%emt 00:00:22]} 7. Bxd6 {[%clk 00:09:24]} {[%emt 00:00:02]}
cxd6 {[%clk 00:09:06]} {[%emt 00:00:02]} 8. h3 {[%clk 00:08:58]} {[%emt
00:00:26]} Nc6 {[%clk 00:08:48]} {[%emt 00:00:18]} 9. Bb5 {[%clk 00:08:42]}
{[%emt 00:00:17]} Bd7 {[%clk 00:08:36]} {[%emt 00:00:12]} 10. Nbd2 {[%clk
00:08:31]} {[%emt 00:00:10]} f5 {[%clk 00:08:07]} {[%emt 00:00:29]} 11. Qc2
{[%clk 00:07:55]} {[%emt 00:00:37]} Qf6 {[%emt 00:00:31]} 12. Nh2 {[%clk
00:07:16]} {[%emt 00:00:36]} Nge7 {[%clk 00:07:18]} {[%emt 00:00:21]} 13. O-O-O
{[%clk 00:06:45]} {[%emt 00:00:30]} Rc8 {[%clk 00:07:10]} {[%emt 00:00:09]} 14.
Kb1 {[%clk 00:06:33]} {[%emt 00:00:12]} a6 {[%clk 00:07:04]} {[%emt 00:00:05]}
15. Bxc6 {[%clk 00:06:16]} {[%emt 00:00:17]} Nxc6 {[%emt 00:00:03]} 16. Qb3
{[%clk 00:06:10]} {[%emt 00:00:05]} b5 {[%clk 00:06:41]} {[%emt 00:00:22]} 17.
Qa3 {[%clk 00:05:50]} {[%emt 00:00:20]} Ke7 {[%clk 00:06:02]} {[%emt 00:00:39]}
18. Qxa6 {[%clk 00:04:58]} {[%emt 00:00:52]} Ra8 {[%clk 00:05:56]} {[%emt
00:00:05]} 19. Qxb5 {[%clk 00:04:47]} {[%emt 00:00:12]} Nxd4 {[%clk 00:05:37]}
{[%emt 00:00:19]} 20. Qd3 {[%emt 00:00:29]} Nc6 {[%clk 00:05:15]} 21. c4 {[%clk
00:04:20]} {[%emt 00:00:20]} Rhb8 {[%clk 00:04:59]} {[%emt 00:00:16]} 22. b3
{[%clk 00:04:03]} {[%emt 00:00:17]} Rxa2 {[%clk 00:04:36]} {[%emt 00:00:23]} 23.
cxd5 {[%clk 00:03:23]} {[%emt 00:00:39]} Qb2# {[%clk 00:04:28]} {[%emt
00:00:07]} 0-1